Cogmind - Beta 14 @@@ ROGUE MODE // 2024.08.13 @ 02:06:22 Player: Zeia Result: Destroyed by S-27 Virus with Autogun Performance ------------- Evolutions (4) 2000 Regions Visited (5) 1000 Robots Destroyed (28) 140 Value Destroyed (810) 810 Prototype IDs (18) 360 Alien Tech Used (0) 0 Bonus (300) 300 TOTAL SCORE: 4610 Bonus ------- Registered with UFD 300 Cogmind --------- Core Integrity 0/850 Matter 300/300 Energy 99/100 System Corruption 14% Temperature Cool (0) Movement Core (50) Location -6/Factory Parts ------- > --- POWER (2) -------- (None) > --- PROPULSION (4) --- (None) > --- UTILITY (6) ------ (None) > --- WEAPON (3) ------- (None) > --- INVENTORY (5) ---- Deep Structural Scanner Experimental Sensor Array A0-MCA's Component Scanner Power Sword DRS Beacon (Ready) Peak State ------------ > --- POWER ------------ Improved Ion Engine Fusion Compressor > --- PROPULSION ------- Light Treads Light Treads > --- UTILITY ---------- Scrap Suit Large Storage Unit Signal Interpreter Advanced Signal Interpreter > --- WEAPON ----------- Spread Laser Heavy Assault Rifle Heavy Mace > --- INVENTORY -------- Deep Structural Scanner Experimental Sensor Array Improved Melee Analysis Suite Improved Melee Analysis Suite Improved Hardlight Generator A0-MCA's Component Scanner Scrapoid Pod CPS Tube Heavy Mace Powered Hammer Power Sword Vortex Trap DRS Beacon Botcube [Rating: 38] Favorites ----------- Power Improved Ion Engine Engine Improved Ion Engine Power Core Fusion Compressor Propulsion Light Treads Treads Light Treads Wheel Subdweller Monowheel Utility Signal Interpreter Device Scrap Suit Storage Large Storage Unit Processor Signal Interpreter Weapon Spread Laser Energy Gun Spread Laser Ballistic Gun Heavy Assault Rifle Ballistic Cannon Magnetic Acceleration Cannon Launcher Grenade Launcher Impact Weapon Heavy Mace Build | -11 -10 -10 -9 -9 -6 ------- Run | Yrd Mat Sub Rec Scr Fac Slots Evolved 8 | . . . . . 8 Power 1 | . . . . . 1 Propulsion 2 | . . . . . 2 Utility 4 | . . . . . 4 Weapon 1 | . . . . . 1 Parts Attached 41 | 6 14 5 5 4 7 Power 7 | 1 2 2 1 . 1 Engine 6 | 1 2 2 1 . . Core 1 | . . . . . 1 Reactor . | . . . . . . Propulsion 16 | 2 6 2 2 2 2 Treads 12 | . 6 2 2 1 1 Leg . | . . . . . . Wheel 4 | 2 . . . 1 1 Hover . | . . . . . . Flight . | . . . . . . Utility 7 | 1 1 . 1 1 3 Device 2 | . . . . . 2 Storage 3 | 1 . . 1 1 . Processor 2 | . 1 . . . 1 Hackware . | . . . . . . Protection . | . . . . . . Artifact . | . . . . . . Weapon 11 | 2 5 1 1 1 1 Energy Gun 6 | 2 3 . 1 . . Energy Cannon . | . . . . . . Ballistic Gun 1 | . . . . 1 . Ballistic Cannon 1 | . . . . . 1 Launcher 3 | . 2 1 . . . Special Weapon . | . . . . . . Impact Weapon . | . . . . . . Slashing Weapon . | . . . . . . Piercing Weapon . | . . . . . . Special Melee Weapon . | . . . . . . Unidentified Prototypes . | . . . . . . Parts Lost 13 | . . 1 . . 12 Power 3 | . . 1 . . 2 Propulsion 4 | . . . . . 4 Utility 3 | . . . . . 3 Weapon 3 | . . . . . 3 Highest Loss Streak 10 | . . 1 . . 10 To Critical Strikes . | . . . . . . Average Slot Usage (%) 97 | . 98 100 100 100 58 Engine 13 | . 14 14 14 14 4 Treads 26 | . 27 28 28 27 12 Storage 13 | . 14 14 14 14 5 Processor 13 | . 12 14 14 14 6 Energy Gun 24 | . 26 27 20 27 5 Launcher 1 | . 1 . 7 . . Peak Build Rating 38 | 6 10 11 11 17 38 Average Rating 13 | 4 8 10 10 14 29 On Entrance 8 | . 6 9 10 11 17 Naked Turns 7 | . . . . . 7 Heaviest Build 45 | 11 16 16 33 33 45 Greatest Support 60 | 26 40 40 40 40 60 Greatest Overweight (x) 12 | . 3 . . 10 12 Average Overweight (x) . | . . . . . . Largest Inventory Capacity 15 | 8 8 8 15 15 15 Average Capacity 12 | 6 8 8 10 15 14 Most Carried 15 | 6 8 8 9 15 15 Average Carried 11 | 4 7 7 8 14 13 Final Capacity 15 | 8 8 8 15 15 5 Final Carried 15 | 6 8 8 9 15 5 Class Distribution -------------------- 100% | Mutant Dominant Class ---------------- Mutant | -10/Materials Mutant | -10/Subcaves Mutant | -9/Recycling Mutant | -9/Scraptown Mutant | -6/Factory Resources | -11 -10 -10 -9 -9 -6 ----------- Run | Yrd Mat Sub Rec Scr Fac Matter Collected 804 | 221 129 95 182 30 147 Remotely . | . . . . . . Salvage Created 585 | 23 155 235 57 . 115 Parts 46 | 1 10 24 6 . 5 Haulers Intercepted . | . . . . . . Recyclers Shooed . | . . . . . . Parts Field Recycled . | . . . . . . Retrieved Matter . | . . . . . . Parts Self-Destructed 16 | . . 16 . . . Prevented . | . . . . . . Kills | -11 -10 -10 -9 -9 -6 ------- Run | Yrd Mat Sub Rec Scr Fac Combat Hostiles Destroyed 28 | . 7 13 1 . 7 Guns 17 | . 4 9 1 . 3 Cannons 4 | . . . . . 4 AOE 7 | . 3 4 . . . Classes Destroyed 9 | 1 2 2 2 . 2 Worker 1 | . . . . . 1 Builder 1 | . . . 1 . . Tunneler 1 | 1 . . . . . Turret 2 | . . 2 . . . Swarmer 7 | . 3 4 . . . Grunt 6 | . 4 . . . 2 Sentry 1 | . . . 1 . . Subdweller 9 | . . 9 . . . Assembled 5 | . . . . . 5 Best Kill Streak 6 | 1 3 4 2 . 6 Combat Bots Only 5 | . 3 4 1 . 5 Max Kills in Single Turn 3 | 1 3 2 1 . 2 Gunslinging . | . . . . . . Exploded 3 | . 3 2 . . . Melee . | . . . . . . Uniques/NPCs Destroyed . | . . . . . . Combat | -11 -10 -10 -9 -9 -6 -------- Run | Yrd Mat Sub Rec Scr Fac Hostile Shots Fired 238 | . 22 74 6 . 136 Missed 83 | . 6 37 2 . 38 Damage Taken 3239 | . 217 494 64 . 2464 Core 961 | . 28 48 29 . 856 Absorbed by Shields . | . . . . . . Regen/Repaired (Parts) 167 | . 167 . . . . Core Remaining (%) 79 | 100 . . . 58 . Volleys Fired 71 | 2 13 33 3 . 20 Largest 2 | 2 2 2 2 . 2 Hottest 130 | 90 130 130 130 . 118 Shots Fired 126 | 4 25 53 4 . 40 Gun 105 | 4 24 40 3 . 34 Cannon 6 | . . . . . 6 Launcher 15 | . 1 13 1 . . Special . | . . . . . . Kinetic 20 | . . . . . 20 Thermal 91 | 4 24 40 3 . 20 Explosive 15 | . 1 13 1 . . Electromagnetic . | . . . . . . Robot Hit Streak 25 | 2 10 25 6 . 10 Robot Miss Streak 4 | 1 4 4 3 . 3 Penetration Max . | . . . . . . Secondary Targets 2 | . 1 . . . 1 Max Gunslinging Chain 1 | . 1 . . . 1 Shots Hit Robots 102 | 3 21 38 4 . 36 Core Hits 126 | 1 20 63 6 . 36 Critical Kills . | . . . . . . Critical Parts Destroyed . | . . . . . . Critical Strikes 2 | . 1 . . . 1 Burn 1 | . 1 . . . . Blast 1 | . . . . . 1 Melee Attacks . | . . . . . . Impact . | . . . . . . Slashing . | . . . . . . Piercing . | . . . . . . Sneak Attacks . | . . . . . . Combat Hostiles . | . . . . . . Follow-up Attacks . | . . . . . . Damage Inflicted 2214 | 32 394 1110 66 . 612 Guns 1411 | 32 280 618 30 . 451 Cannons 161 | . . . . . 161 Explosions 631 | . 106 492 33 . . Melee . | . . . . . . Ramming 11 | . 8 . 3 . . Kinetic 335 | . . . . . 335 Thermal 1237 | 32 280 618 30 . 277 Explosive 631 | . 106 492 33 . . Electromagnetic . | . . . . . . Impact . | . . . . . . Slashing . | . . . . . . Piercing . | . . . . . . Highest Corruption 14 | . . . . . 14 Average Corruption 12 | . . . . . 12 Corruption Purged . | . . . . . . Corruption Blocked . | . . . . . . Effects 5 | . . . . . 5 Message Errors 1 | . . . . . 1 Matter Fused 1 | . . . . . 1 Heat Flow Errors 1 | . . . . . 1 Energy Discharges 1 | . . . . . 1 Misdirections 1 | . . . . . 1 Overload Shots . | . . . . . . Overflow Damage 32 | . . 32 . . . Projectiles . | . . . . . . Explosions 32 | . . 32 . . . Melee . | . . . . . . Knockbacks 3 | . . . . . 3 Impact . | . . . . . . Kinetic 2 | . . . . . 2 Secondary 1 | . . . . . 1 Self-Inflicted Damage 80 | . 23 51 6 . . Shots 4 | . 1 2 1 . . Rammed 5 | . 3 . 1 . 1 Targets Rammed 5 | . 3 . 1 . 1 Kicked . | . . . . . . Crushed . | . . . . . . Highest Temperature 297 | 60 297 46 54 . 161 Average Temperature 75 | 33 131 18 22 . 67 Received Heat Transfer 630 | . 96 150 45 . 339 Effects 1 | . 1 . . . . Energy Bleed 1 | . 1 . . . . Siege Activations . | . . . . . . Robots Corrupted . | . . . . . . Combat Hostiles . | . . . . . . Parts Fried . | . . . . . . Impact Corruptions . | . . . . . . Robots Melted . | . . . . . . Combat Hostiles . | . . . . . . Parts Melted 1 | . 1 . . . . Heat Transferred 1865 | 87 638 765 35 . 340 Parts Sabotaged . | . . . . . . Parts Stolen . | . . . . . . Parts Stripped . | . . . . . . Power Chain Reactions . | . . . . . . Alert | -11 -10 -10 -9 -9 -6 ------- Run | Yrd Mat Sub Rec Scr Fac Peak Influence 141 | 5 141 . 66 . 65 Initial 61 | . 3 . 61 . . Average 30 | . 36 . 34 . 15 Maximum Alert Level . | . . . . . . Low Security (%) 100 | 100 100 . 100 . 100 Level 1 . | . . . . . . Level 2 . | . . . . . . Level 3 . | . . . . . . Level 4 . | . . . . . . Level 5 . | . . . . . . High Security . | . . . . . . Max Security . | . . . . . . Squads Dispatched 2 | . 1 . . . 1 Investigation . | . . . . . . Extermination . | . . . . . . Reinforcement 2 | . 1 . . . 1 Assault . | . . . . . . Garrison . | . . . . . . Intercept . | . . . . . . Searches Triggered . | . . . . . . Construction Impeded . | . . . . . . Haulers Reinforced 1 | . . . . . 1 Active Scanning Responses . | . . . . . . Cargo Convoy Interrupts . | . . . . . . Stealth | -11 -10 -10 -9 -9 -6 --------- Run | Yrd Mat Sub Rec Scr Fac Distress Signals 1 | . . . . . 1 Communications Jammed . | . . . . . . Distress Signals . | . . . . . . Times Spotted 81 | . 21 19 1 . 40 Peak Tracking Total 13 | . 5 3 1 . 13 Tactical Retreats 7 | . . 3 . . 4 Traps | -11 -10 -10 -9 -9 -6 ------- Run | Yrd Mat Sub Rec Scr Fac Traps Triggered 2 | . 1 . . . 1 Indirectly . | . . . . . . Trap Hack Attempts . | . . . . . . Triggered . | . . . . . . Disarmed . | . . . . . . Reprogrammed . | . . . . . . Reused . | . . . . . . Traps Extracted . | . . . . . . Installed . | . . . . . . Triggered . | . . . . . . Most Traps Carried 1 | . . . . 1 1 Machines | -11 -10 -10 -9 -9 -6 ---------- Run | Yrd Mat Sub Rec Scr Fac Machines Disabled 4 | . . 4 . . . Max in Single Turn 2 | . . 2 . . . Machines Repaired . | . . . . . . Machines Dismantled . | . . . . . . Machines Sabotaged . | . . . . . . Overloaded Fab Kills . | . . . . . . Hacking | -11 -10 -10 -9 -9 -6 --------- Run | Yrd Mat Sub Rec Scr Fac Machines Accessed 26 | . 8 3 8 6 1 Terminals 14 | . 7 . 6 . 1 Fabricators . | . . . . . . Repair Stations 1 | . 1 . . . . Recycling Units . | . . . . . . Scanalyzers . | . . . . . . Garrison Access . | . . . . . . Total Hacks 118 | . 26 7 42 41 2 Successful 98 | . 16 7 34 41 . Failed 20 | . 10 . 8 . 2 Catastrophic 2 | . . . 1 . 1 Database Lockouts . | . . . . . . Manual 30 | . 15 . 13 . 2 Terminals 38 | . 18 . 18 . 2 Fabricators . | . . . . . . Repair Stations 8 | . 8 . . . . Recycling Units . | . . . . . . Scanalyzers . | . . . . . . Garrison Access . | . . . . . . Terminal Hacks 78 | . 2 7 28 41 . Record 71 | . . 5 26 40 . Prototype ID Bank 1 | . . . 1 . . Open Door 1 | . . 1 . . . Unreport Threat 1 | . . . 1 . . Recall Reinforcements 1 | . 1 . . . . Zone Layout 1 | . 1 . . . . Derelict Proto ID Bank 1 | . . . . 1 . Release Object 1 | . . 1 . . . Fabricator Hacks . | . . . . . . Repair Station Hacks 8 | . 8 . . . . Scan Component 4 | . 4 . . . . Repair 4 | . 4 . . . . Recycling Unit Hacks . | . . . . . . Scanalyzer . | . . . . . . Garrison Access Hacks . | . . . . . . Unauthorized Hacks 12 | . 6 . 6 . . Terminals 12 | . 6 . 6 . . Botnet 12 | . 6 . 6 . . Fabricators . | . . . . . . Repair Stations . | . . . . . . Recycling Units . | . . . . . . Scanalyzers . | . . . . . . Garrison Access . | . . . . . . Data Cores Recovered . | . . . . . . Used . | . . . . . . Hacking Detections 13 | . 7 . 5 . 1 Full Trace Events 2 | . 1 . 1 . . Feedback Events . | . . . . . . Feedback Blocked . | . . . . . . Robot Schematics Acquired . | . . . . . . Robots Built . | . . . . . . Authchips . | . . . . . . Time . | . . . . . . Total Robot Build Rating . | . . . . . . Part Schematics Acquired . | . . . . . . Parts Built . | . . . . . . Authchips . | . . . . . . Time . | . . . . . . Total Part Build Rating . | . . . . . . Parts Repaired 4 | . 4 . . . . Time 104 | . 104 . . . . Parts Recycled . | . . . . . . Recycled Matter . | . . . . . . Retrieved Matter . | . . . . . . Retrieved Components . | . . . . . . Parts Scanalyzed . | . . . . . . Part Schematics Acquired . | . . . . . . Parts Damaged . | . . . . . . Bothacking | -11 -10 -10 -9 -9 -6 ------------ Run | Yrd Mat Sub Rec Scr Fac Used RIF Installer . | . . . . . . Robots Hacked . | . . . . . . Non-combat . | . . . . . . Combat . | . . . . . . Robot Hacks Applied . | . . . . . . Relay Couplers Released . | . . . . . . Fabnet Peak Effective % . | . . . . . . Robots Rewired . | . . . . . . Allies Hacked . | . . . . . . Hacks Repelled . | . . . . . . Allies | -11 -10 -10 -9 -9 -6 -------- Run | Yrd Mat Sub Rec Scr Fac Total Allies . | . . . . . . Largest Group . | . . . . . . Highest-Rated Group . | . . . . . . Highest-Rated Ally . | . . . . . . Total Orders . | . . . . . . Ally Attacks . | . . . . . . Total Damage . | . . . . . . Kills . | . . . . . . Allies Corrupted . | . . . . . . Allies Melted . | . . . . . . Intel | -11 -10 -10 -9 -9 -6 ------- Run | Yrd Mat Sub Rec Scr Fac Robot Analysis Total . | . . . . . . Derelict Logs Recovered 3 | . . . . 3 . Drone Launches . | . . . . . . Drone Recoveries . | . . . . . . Exploration | -11 -10 -10 -9 -9 -6 ------------- Run | Yrd Mat Sub Rec Scr Fac Turns Passed 9084 | 66 1360 1270 936 4856 596 Spaces Moved 5338 | 50 689 699 574 3056 270 Core 72 | 1 1 . . 1 69 Treads 5054 | . 688 699 574 2892 201 Legs . | . . . . . . Wheels 212 | 49 . . . 163 . Hover . | . . . . . . Flight . | . . . . . . Fastest Speed 50 | 50 160 160 160 120 50 Average Speed 159 | 89 160 160 160 157 185 Slowest Speed 650 | 100 200 160 160 550 650 Overloaded Moves . | . . . . . . Propulsion Burnouts . | . . . . . . Robots Hopped . | . . . . . . Cave-ins Triggered . | . . . . . . Exploration Rate (%) 57 | 3 93 42 99 96 9 Regions Visited 5 Branch Regions 3 Pre-discovered Areas 8 | . . 1 . 7 . Known Exits Taken 4 | . 1 1 1 1 . Unknown Exits Taken 1 | 1 . . . . . Scrap Searched 4 | . . . . 4 . Spaces Dug 8 | . 8 . . . . Terrain Destroyed 46 | . 8 33 5 . . Melee . | . . . . . . Projectile . | . . . . . . AOE 46 | . 8 33 5 . . Terrain Rammed . | . . . . . . Walls Destroyed . | . . . . . . Machines Disabled . | . . . . . . Actions | -11 -10 -10 -9 -9 -6 --------- Run | Yrd Mat Sub Rec Scr Fac Total 5783 | 63 921 799 588 3088 324 Wait 240 | . 178 50 3 . 9 Move 5333 | 49 688 698 573 3055 270 Hop . | . . . . . . Pick Up 45 | 6 13 6 . 15 5 Fast Attach 16 | 6 5 . . 1 4 Attach 4 | . . 1 . . 3 Detach 1 | . . . . . 1 Swap 21 | . 9 4 5 3 . Drop 45 | . 12 6 3 13 11 Fire 71 | 2 13 33 3 . 20 Melee . | . . . . . . Ram 1 | . . . . . 1 Kick . | . . . . . . Crush 4 | . 3 . 1 . . Escape Stasis . | . . . . . . Rewire 1 | . . . . 1 . Trap . | . . . . . . Miscellaneous 1 | . . 1 . . . Route ------- -11/Scrapyard -10/Materials (discovered 5 exits: *Mat x3 / [*Min] / *Sub) -10/Subcaves (discovered 3 exits: Mat x2 / *Rec) -9/Recycling (discovered 2 exits: [*Fac] / *Scr) -9/Scraptown (discovered 2 exits: *Fac x2) -6/Factory (discovered 6 exits: Fac x4 / Low x2) History --------- Turn | Location | Event 12 | -11/Scrapyard | Discovered new exit (range 15) 67 | -11/Scrapyard | Entered Materials 314 | -10/Materials | Build established: Mutant 383 | -10/Materials | Discovered new exit (range 15) 541 | -10/Materials | Discovered new exit (range 11) 800 | -10/Materials | Discovered new exit (range 12) 1005 | -10/Materials | Repaired Grenade Launcher 1032 | -10/Materials | Repaired Lgt. Treads 1059 | -10/Materials | Repaired Lgt. Treads 1086 | -10/Materials | Repaired Ion Engine 1220 | -10/Materials | Discovered new exit (range 15) 1260 | -10/Materials | Identified exit to Materials 1421 | -10/Materials | Discovered new exit (range 3) 1423 | -10/Materials | Identified exit to Subcaves 1427 | -10/Materials | Entered Subcaves 1613 | -10/Subcaves | Learned location of Zion (-7) 1613 | -10/Subcaves | Met a Zionite searching for "candidates" 1702 | -10/Subcaves | Ambushed by Subdwellers from Twisted Machinery 1945 | -10/Subcaves | Shifting Twisted Machinery released Sub. Machine Gun 1946 | -10/Subcaves | Shifting Twisted Machinery released Sub. Monowheel 2000 | -10/Subcaves | A swath of the cavern ceiling suddenly collapsed 2094 | -10/Subcaves | Visited Clippyterm 2099 | -10/Subcaves | Identified exit to Materials 2099 | -10/Subcaves | Identified exit to Recycling 2277 | -10/Subcaves | Released subatomizers from SUBCON Basin 2697 | -10/Subcaves | Entered Recycling 2698 | -9/Recycling | Met a Zionite searching for Scraptown 2920 | -9/Recycling | Scanned before Scraplab entrance 3233 | -9/Recycling | Discovered new exit (range 15) 3602 | -9/Recycling | Entered Scraplab 3622 | -9/Recycling | Discovered new exit (range 3) 3623 | -9/Recycling | Identified exit to Scraptown 3633 | -9/Recycling | Entered Scraptown 4222 | -9/Scraptown | Visited Comm Corps 4336 | -9/Scraptown | Visited SPCMW 4410 | -9/Scraptown | Visited Fellowship of the Rings 4456 | -9/Scraptown | Visited TADAMA 4876 | -9/Scraptown | Discovered new exit (range 5) 4934 | -9/Scraptown | Scanned Subdweller tech in exchange for log data 4939 | -9/Scraptown | Learned location of Quarantine (-2) 4942 | -9/Scraptown | Learned location of Warlord (-4) 4982 | -9/Scraptown | Visited Assassins FH 5049 | -9/Scraptown | Visited CPS Storage 5092 | -9/Scraptown | Visited Red Mages 5438 | -9/Scraptown | Visited UFD Registry 5438 | -9/Scraptown | Registered with UFD as "Longshaft" 5497 | -9/Scraptown | Visited Cartography Club 5534 | -9/Scraptown | Visited Chapter 10 5621 | -9/Scraptown | Visited A0-MCA Data Center 5631 | -9/Scraptown | Given a B rating by A0-MCA 5640 | -9/Scraptown | Found A0-MCA's Component Scanner 5787 | -9/Scraptown | Discovered new exit (range 5) 5839 | -9/Scraptown | Visited Curators Association 5915 | -9/Scraptown | Visited Botcube Research 5929 | -9/Scraptown | Found Botcube 5956 | -9/Scraptown | Visited Infowarlord's Domain 6078 | -9/Scraptown | Visited Scrap Suit Storage 6135 | -9/Scraptown | Visited Derelict Rescue Squad 6150 | -9/Scraptown | Found DRS Beacon 6180 | -9/Scraptown | Visited Scrapoid Pod Storage 6218 | -9/Scraptown | Visited Science Guys 6435 | -9/Scraptown | Learned location of Recycling (-9) 6435 | -9/Scraptown | Learned 4 Access zone layouts 6435 | -9/Scraptown | Learned 8 Access zone layouts 6435 | -9/Scraptown | Learned 12 Lower Caves zone layouts 6435 | -9/Scraptown | Learned 16 Lower Caves zone layouts 6435 | -9/Scraptown | Learned 20 Lower Caves zone layouts 6435 | -9/Scraptown | Learned 24 Upper Caves zone layouts 6435 | -9/Scraptown | Learned 16 Proximity Caves zone layouts 6435 | -9/Scraptown | Learned Storage emergency access door positions 6435 | -9/Scraptown | Learned location of 3 exits from Factory 6435 | -9/Scraptown | Learned location of 2 exits from Research 6435 | -9/Scraptown | Learned location of 1 exit from Upper Caves 6467 | -9/Scraptown | Found Deep Structural Scanner 6621 | -9/Scraptown | Found Scrap Suit 6696 | -9/Scraptown | Found Exp. Sensor Array 7035 | -9/Scraptown | Found Scrapoid Pod 7904 | -9/Scraptown | Identified exit to Factory 8489 | -9/Scraptown | Entered Factory 8489 | -6/Factory | Evolved 8 slots: Power x1, Propulsion x2, Utility x4, Weapon x1 8490 | -6/Factory | Identified exit to Factory 8491 | -6/Factory | Identified exit to Lower Caves 8970 | -6/Factory | Assembled infested ambush trap array 9001 | -6/Factory | System corruption reached 10% 9041 | -6/Factory | Core integrity fell below 50% 9065 | -6/Factory | Lost 10 parts (2p2n3u3w) 9067 | -6/Factory | Core integrity fell below 20% 9085 | -6/Factory | Destroyed by S-27 Virus with Autogun Last Messages --------------- 09049_ R-10 Processor collects Lyr. Heavy Armor Plating. 09050_ The unstable cave ceiling collapses. 09050_ as-45641 destroyed. 09051_ The unstable cave ceiling collapses. 09051_ Discarded Scrapoid Pod. 09053_ XEL&JHKKD4Q%S1DMW,GCNU UXFMX&S/2APD KVU 09053_ The unstable cave ceiling collapses. 09053_ R-10 Processor collects Med. Treads. 09054_ R-10 Processor destroyed. 09054_ Acquired Com. Wheel. 09056_ Dropped A0-MCA's Component Scanner. 09056_ Acquired A0-MCA's Component Scanner. 09057_ The unstable cave ceiling collapses. 09057_ Botcube crushed. 09057_ Acquired 20 matter. 09072_ System corrupted: Heat flow error (+161). 09076_ W-25 Informer sends out distress signal. 09081_ Com. Wheel destroyed. 09082_ Penetrated by Slug. 09082_ Slug penetrates S-27 Virus. Map ----- +----------------------------------------------------+ | ??????????????????# #????????????????????????????? | | ??????????????????# #????????????????????????????? | | ??????????????????# #????????????????????????????? | | ??????????????????# #????????????????????????????? | | ??????????????????# #????????????????????????????? | | ??????????????????# #????????????????????????????? | | ??????????????????# #????????????????????????????? | | ??????????????????# #????????????????????????????? | | ??????????#########+####?????????????????????????? | | ??????????# #?????????????????????????? | | ??????????# #?????????????????????????? | | ??????????# """ """ #?????????????????????????? | | ??????????# """ """ #?????????????????????????? | | ??????????# """ """ #?????????????????????????? | | ??????????# #?????????????????????????? | | ??????????# """ """ #?????????????????????????? | | ??????????# """ """ #?????????????????????????? | | ??????????# """ """ #?????????????????????????? | | ??????????# #????????????? ???????????? | | ??????????# #??????????? ????????????? | | ??????????# #????????? ??????????????? | | ????##############A#############/#######?????????? | | ?? w R s u s ?????????? | | ?? ^s ????????? | | ?? s s ????????? | | ?? s @ ????????? | | ??? h s k u k ????????? | | ???#########+######+##################???????????? | | ?????????? ??# #????????????????????????? | | ????????? ???# "" #????????????????????????? | | ???????? ????# "" ]] #????????????????????????? | | ?????? ?????# """ ] #????????????????????????? | | ?????# ??????# """ #????????????????????????? | | ?????? ???????# """ #????????????????????????? | | ??????????????# #????????????????????????? | | ??????????????# =#????????????????????????? | | ???????????????##########????????????????????????? | | ?????????????????????????????????????????????????? | | ?????????????????????????????????????????????????? | | ?????????????????????????????????????????????????? | | ?????????????????????????????????????????????????? | | ?????????????????????????????????????????????????? | | ?????????????????????????????????????????????????? | | ?????????????????????????????????????????????????? | | ?????????????????????????????????????????????????? | | ?????????????????????????????????????????????????? | | ?????????????????????????????????????????????????? | | ?????????????????????????????????????????????????? | | ?????????????????????????????????????????????????? | | ?????????????????????????????????????????????????? | +----------------------------------------------------+ Best States ------------- Heat Dissipation 37 Energy Generation 32 Energy Capacity 265 Matter Stores 300 Matter Capacity 300 Sight Range 16 Terrain Scan Density 10 Evasion (%) 50 Recoil Reduction 3 Item Schematics ----------------- None Robot Schematics ------------------ None Fabricated ------------ Nothing Alien Tech Used ----------------- None Achievements -------------- None Challenges ------------ None Game ------ Seed JunkReactiveKatana Manual? 0 Play Time 01:21:05 Cumulative 34.4 hours Start 2024.08.12 @ 20:49:28 End 2024.08.13 @ 02:06:22 Sessions 7 Manual Loads 0 Difficulty Rogue Special Mode None Game No. 27 Rogue 27 Adventurer 0 Explorer 0 Win Type - Total 0 Types 0/0/0/0/0/0/0/0/0 Lore% 25 Gallery% 32 Achievement% 28 Wizard Run 0 Options --------- Layout 1 ASCII 0 Keyboard 1 Movement Vi Keybinds 0 Fullscreen 1 Font 20/SmallcapsGlow Map View 64x42 Zoom Use 0% Tactical HUD 1 Map Filters NONE Filters NONE Steam 1 RUN: df4fb449-e0b6-4204-9ba8-57251d3b6370